fUST/lending_fUST_20240425
["ID","MTS","AMOUNT","RATE_DAILY","PERIOD"]
[323432495,1713984672868,-280.5249904,0.00017808,2]
[323432496,1713984672877,-708.42,0.00017808,2]
[323432497,1713984672886,-500.0,0.00017808,2]
[323432498,1713984672898,-500.0,0.00017808,2]
[323432499,1713984672907,-500.0,0.00017808,2]
[323432500,1713984672916,-500.0,0.00017808,2]
[323432501,1713984672924,-785.8,0.00017808,2]
[323432502,1713984672933,-500.0,0.00017808,2]
[323432503,1713984672942,-695.13,0.00017808,2]
[323432504,1713984672952,-999.88,0.00017808,2]
[323432505,1713984672961,-500.0,0.00017808,2]
[323432506,1713984672971,-500.0,0.00017808,2]
[323432507,1713984672980,-1909.77,0.00017808,2]
[323432508,1713984672989,-500.0,0.00017808,2]
[323432509,1713984672998,-634.31,0.00017808,2]
[323432510,1713984673007,-500.0,0.00017808,2]
[323432511,1713984673017,-500.0,0.00017808,2]
[323432512,1713984673026,-500.0,0.00017808,2]
[323432513,1713984673035,-1645.24,0.00017808,2]
[323432514,1713984673044,-500.0,0.00017808,2]
[323432515,1713984673054,-500.0,0.00017808,2]
[323432516,1713984673063,-2192.71,0.00017808,2]
[323432517,1713984673072,-736.48,0.00017808,2]
[323432518,1713984673081,-500.0,0.00017808,2]
[323432519,1713984673090,-500.0,0.00017808,2]
[323432520,1713984673100,-691.26,0.00017808,2]
[323432521,1713984673109,-500.0,0.00017808,2]
[323432522,1713984673118,-500.0,0.00017808,2]
[323432523,1713984673127,-500.0,0.00017808,2]
[323432524,1713984673136,-494.9160152,0.00017808,2]
[323432525,1713984673147,-500.0,0.00017808,2]
[323432526,1713984673156,-500.0,0.00017808,2]
[323432527,1713984673165,-650.3,0.00017808,2]
[323432528,1713984673175,-1002.4,0.00017808,2]
[323432529,1713984673184,-1100.44,0.00017808,2]
[323432530,1713984673193,-693.43,0.00017808,2]
[323432531,1713984673202,-534.56,0.00017808,2]
[323432532,1713984673212,-500.0,0.00017808,2]
[323432533,1713984673222,-500.0,0.00017808,2]
[323432534,1713984673231,-500.0,0.00017808,2]
[323432535,1713984673241,-500.0,0.00017808,2]
[323432536,1713984673250,-548.44901264,0.00017808,2]
[323432537,1713984673260,-1280.96,0.00017808,2]
[323432538,1713984673269,-515.07,0.00017808,2]
[323432539,1713984673281,-1572.17,0.00017808,2]
[323432540,1713984673290,-2597.28,0.00017808,2]
[323432541,1713984673300,-539.11,0.00017808,2]
[323432542,1713984673310,-1730.28,0.00017808,2]
[323432543,1713984673319,-500.0,0.00017808,2]
[323432544,1713984673329,-500.0,0.00017808,2]
[323432545,1713984673339,-500.0,0.00017808,2]
[323432546,1713984673348,-553.14,0.00017808,2]
[323432547,1713984673358,-500.0,0.00017808,2]
[323432548,1713984673367,-1050.14,0.00017808,2]
[323432549,1713984673376,-319.03532381,0.00017808,2]
[323432550,1713984673386,-500.0,0.00017808,2]
[323432551,1713984673399,-2490.79,0.00017808,2]
[323432552,1713984673407,-939.73,0.00017808,2]
[323432553,1713984673416,-500.0,0.00017808,2]
[323432554,1713984673426,-500.0,0.00017808,2]
[323432555,1713984673435,-1217.82,0.00017808,2]
[323432556,1713984673444,-200.52326408,0.00017808,2]
[323432557,1713984673454,-1977.88,0.00017808,2]
[323432558,1713984673463,-979.24,0.00017808,2]
[323432559,1713984673472,-500.0,0.00017808,2]
[323432560,1713984673489,-500.0,0.00017808,2]
[323432561,1713984673507,-571.61,0.00017808,2]
[323432562,1713984673524,-1094.17,0.00017808,2]
[323432563,1713984673542,-500.0,0.00017808,2]
[323432564,1713984673558,-500.0,0.00017808,2]
[323432565,1713984673574,-1357.41,0.00017808,2]
[323432566,1713984673592,-500.0,0.00017808,2]
[323432567,1713984673609,-1382.9,0.00017808,2]
[323432568,1713984673628,-500.0,0.00017808,2]
[323432569,1713984673645,-292.61961312,0.00017808,2]
[323432570,1713984673664,-1158.93,0.00017808,2]
[323432571,1713984673685,-500.0,0.00017808,2]
[323432572,1713984673698,-1002.6,0.00017808,2]
[323432573,1713984673714,-20762.57,0.00017808,2]
[323432574,1713984673730,-1565.04,0.00017808,2]
[323432575,1713984673742,-500.0,0.00017808,2]
[323432576,1713984673758,-1005.95,0.00017808,2]
[323432577,1713984673773,-500.0,0.00017808,2]
[323432578,1713984673789,-500.0,0.00017808,2]
[323432579,1713984673804,-500.0,0.00017808,2]
[323432580,1713984673818,-908.92,0.00017808,2]
[323432581,1713984673834,-19373.57,0.00017808,2]
[323432582,1713984673850,-1126.69,0.00017808,2]
[323432583,1713984673865,-1323.24,0.00017808,2]
[323432584,1713984673879,-2676.08,0.00017808,2]
[323432585,1713984673897,-500.0,0.00017808,2]
[323432586,1713984673912,-500.0,0.00017808,2]
[323432587,1713984673927,-541.01,0.00017808,2]
[323432588,1713984673942,-637.03,0.00017808,2]
[323432589,1713984673957,-4954.95,0.00017808,2]
[323432590,1713984673971,-806.42,0.00017808,2]
[323432591,1713984673986,-500.0,0.00017808,2]
[323432592,1713984674000,-500.0,0.00017808,2]
[323432593,1713984674016,-12995.55,0.00017808,2]
[323432594,1713984674030,-2682.8,0.00017808,2]
[323432595,1713984674045,-500.0,0.00017808,2]
[323432596,1713984674060,-500.0,0.00017808,2]
[323432597,1713984674076,-7231.97,0.00017808,2]
[323432598,1713984674092,-1763.41,0.00017808,2]
[323432599,1713984674107,-500.0,0.00017808,2]
[323432600,1713984674121,-500.0,0.00017808,2]
[323432601,1713984674135,-500.0,0.00017808,2]
[323432602,1713984674156,-500.0,0.00017808,2]
[323432603,1713984674171,-1109.8,0.00017808,2]
[323432604,1713984674186,-703.53,0.00017808,2]
[323432605,1713984674201,-1396.91,0.00017808,2]
[323432606,1713984674216,-500.0,0.00017808,2]
[323432607,1713984674231,-1419.45,0.00017808,2]
[323432608,1713984674245,-7041.65,0.00017808,2]
[323432609,1713984674261,-500.0,0.00017808,2]
[323432610,1713984674276,-8055.98,0.00017808,2]
[323432611,1713984674292,-10090.6,0.00017808,2]
[323432612,1713984674309,-522.15,0.00017808,2]
[323432613,1713984674324,-500.0,0.00017808,2]
[323432614,1713984674338,-500.0,0.00017808,2]
[323432615,1713984674353,-500.0,0.00017808,2]
[323432616,1713984674367,-500.0,0.00017808,2]
[323432617,1713984674383,-707.89,0.00017808,2]
[323432618,1713984674401,-500.0,0.00017808,2]
[323432619,1713984674415,-500.0,0.00017808,2]
[323432620,1713984674431,-2261.27,0.00017808,2]
[323432621,1713984674448,-500.0,0.00017808,2]
[323432622,1713984674462,-6891.8,0.00017808,2]
[323432623,1713984674477,-3678.5,0.00017808,2]
[323432624,1713984674493,-1234.39,0.00017808,2]
[323432625,1713984674632,-1371.63,0.00017808,2]
[323432626,1713984674651,-500.0,0.00017808,2]
[323432627,1713984674660,-500.0,0.00017808,2]
[323432628,1713984674670,-704.21,0.00017808,2]
[323432629,1713984674679,-500.0,0.00017808,2]
[323432630,1713984674689,-925.33,0.00017808,2]
[323432631,1713984674698,-911.08,0.00017808,2]
[323432632,1713984674708,-500.0,0.00017808,2]
[323432633,1713984674718,-741.31,0.00017808,2]
[323432634,1713984674727,-500.0,0.00017808,2]
[323432635,1713984674737,-3135.11,0.00017808,2]
[323432636,1713984674746,-628.54949811,0.00017808,2]
[323432637,1713984674756,-2399.0,0.00017808,2]
[323432638,1713984674765,-500.0,0.00017808,2]
[323432639,1713984674774,-500.0,0.00017808,2]
[323432640,1713984674784,-872.83,0.00017808,2]
[323432641,1713984674794,-500.0,0.00017808,2]
[323432642,1713984674804,-374.40571692,0.00017808,2]
[323432643,1713984674813,-628.94815414,0.00017808,2]
[323432644,1713984674823,-500.0,0.00017808,2]
[323432645,1713984674832,-3286.45,0.00017808,2]
[323432646,1713984674842,-612.33,0.00017808,2]
[323432647,1713984674851,-362.61373832,0.00017808,2]
[323432648,1713984674861,-8567.18,0.00017808,2]
[323432649,1713984674870,-500.0,0.00017808,2]
[323432650,1713984674880,-1176.79,0.00017808,2]
[323432651,1713984674889,-984.91,0.00017808,2]
[323432652,1713984674901,-302.16779516,0.00017808,2]
[323432653,1713984674910,-500.0,0.00017808,2]
[323432654,1713984674920,-500.0,0.00017808,2]
[323432655,1713984674930,-1391.58,0.00017808,2]
[323432656,1713984674939,-500.0,0.00017808,2]
[323432657,1713984674949,-500.0,0.00017808,2]
[323432658,1713984674959,-1326.81,0.00017808,2]
[323432659,1713984674968,-500.0,0.00017808,2]
[323432660,1713984674978,-604.22,0.00017808,2]
[323432661,1713984674988,-613.12,0.00017808,2]
[323432662,1713984674997,-2262.73,0.00017808,2]
[323432663,1713984675008,-500.0,0.00017808,2]
[323432664,1713984675018,-293.87697452,0.00017808,2]
[323432665,1713984675027,-692.01,0.00017808,2]
[323432666,1713984675043,-1674.86,0.00017808,2]
[323432667,1713984675052,-500.0,0.00017808,2]
[323432668,1713984675075,-500.0,0.00017808,2]
[323432669,1713984675101,-500.0,0.00017808,2]
[323432670,1713984675117,-623.72,0.00017808,2]
[323432671,1713984675130,-500.0,0.00017808,2]
[323432672,1713984675167,-623.43,0.00017808,2]
[323432673,1713984675177,-500.0,0.00017808,2]
[323432674,1713984675188,-10000.0,0.00017823,2]
[323432675,1713984675208,-6497.50201308,0.00018,2]
[323432676,1713984675232,-155.23706381,0.00018,2]
[323432677,1713984675263,-156.98390453,0.00018,2]
[323432678,1713984675279,-7359.38575588,0.00018,2]
[323432679,1713984675292,-2599.52492905,0.00018,7]
[323432680,1713984675304,-177.75,0.00018,2]
[323432681,1713984675314,-250.29151333,0.00018024,2]
[323432682,1713984675336,-153.0,0.00018081,2]
[323432683,1713984675363,-153.0,0.00018081,2]
[323432684,1713984675374,-153.0,0.00018081,2]
[323432685,1713984675384,-153.0,0.00018081,2]
[323432686,1713984675423,-153.0,0.00018081,2]
[323432687,1713984675442,-153.0,0.00018081,2]
[323432688,1713984675456,-153.0,0.00018081,2]
[323432689,1713984675467,-153.0,0.00018081,2]
[323432690,1713984675477,-153.0,0.00018081,2]
[323432691,1713984675488,-153.0,0.00018081,2]
[323432692,1713984675497,-153.0,0.00018081,2]
[323432693,1713984675507,-153.0,0.00018081,2]
[323432694,1713984675517,-153.0,0.00018081,2]
[323432695,1713984675527,-500.0,0.00018082,2]
[323432696,1713984675537,-500.0,0.00018082,2]
[323432697,1713984675547,-502.02745164,0.00018082,2]
[323432698,1713984675557,-506.65707545,0.00018082,2]
[323432699,1713984675566,-500.0,0.00018082,2]
[323432700,1713984675576,-500.0,0.00018082,2]
[323432701,1713984675586,-625.0,0.00018082,2]
[323432702,1713984675595,-674.8,0.00018082,2]
[323432703,1713984675605,-500.0,0.00018082,2]
[323432704,1713984675614,-500.0,0.00018082,2]
[323432705,1713984675623,-500.0,0.00018082,2]
[323432706,1713984675632,-500.0,0.00018082,2]
[323432707,1713984675643,-500.0,0.00018082,2]
[323432708,1713984675652,-585.29,0.00018082,2]
[323432709,1713984675662,-716.83,0.00018082,2]
[323432710,1713984675672,-500.0,0.00018082,2]
[323432711,1713984675682,-500.0,0.00018082,2]
[323432712,1713984675691,-500.0,0.00018082,2]
[323432713,1713984675701,-500.0,0.00018082,2]
[323432714,1713984675711,-500.0,0.00018082,2]
[323432715,1713984675721,-500.0,0.00018082,2]
[323432716,1713984675730,-500.0,0.00018082,2]
[323432717,1713984675740,-500.0,0.00018082,2]
[323432718,1713984675750,-560.98,0.00018082,2]
[323432719,1713984675759,-500.0,0.00018082,2]
[323432720,1713984675769,-500.0,0.00018082,2]
[323432721,1713984675780,-500.0,0.00018082,2]
[323432722,1713984675792,-722.43,0.00018082,2]
[323432723,1713984675803,-839.18,0.00018082,2]
[323432724,1713984675813,-500.0,0.00018082,2]
[323432725,1713984675823,-500.0,0.00018082,2]
[323432726,1713984675832,-500.0,0.00018082,2]
[323432727,1713984675842,-500.0,0.00018082,2]
[323432728,1713984675851,-500.0,0.00018082,2]
[323432729,1713984675861,-500.0,0.00018082,2]
[323432730,1713984675871,-1155.53,0.00018082,2]
[323432731,1713984675880,-2033.21,0.00018082,2]
[323432732,1713984675892,-1717.84,0.00018082,2]
[323432733,1713984675900,-500.0,0.00018082,2]
[323432734,1713984675910,-500.0,0.00018082,2]
[323432735,1713984675919,-1292.95,0.00018082,2]
[323432736,1713984675929,-576.55008624,0.00018082,2]
[323432737,1713984675939,-500.0,0.00018082,2]
[323432738,1713984675948,-500.0,0.00018082,2]
[323432739,1713984675958,-500.0,0.00018082,2]
[323432740,1713984675967,-1786.12,0.00018082,2]
[323432741,1713984675977,-1139.75,0.00018082,2]
[323432742,1713984675987,-603.4,0.00018082,2]
[323432743,1713984675997,-978.62,0.00018082,2]
[323432744,1713984676006,-500.0,0.00018082,2]
[323432745,1713984676016,-902.13,0.00018082,2]
[323432746,1713984676027,-999.37,0.00018082,2]
[323432747,1713984676036,-789.38,0.00018082,2]
[323432748,1713984676050,-864.27,0.00018082,2]
[323432749,1713984676060,-500.0,0.00018082,2]
[323432750,1713984676071,-500.0,0.00018082,2]
[323432751,1713984676083,-500.0,0.00018082,2]
[323432752,1713984676093,-500.0,0.00018082,2]
[323432753,1713984676103,-500.0,0.00018082,2]
[323432754,1713984676113,-1005.48,0.00018082,2]
[323432755,1713984676122,-2278.55,0.00018082,2]
[323432756,1713984676132,-500.0,0.00018082,2]
[323432757,1713984676143,-708.42,0.00018082,2]
[323432758,1713984676152,-500.0,0.00018082,2]
[323432759,1713984676168,-500.0,0.00018082,2]
[323432760,1713984676182,-500.0,0.00018082,2]
[323432761,1713984676197,-500.0,0.00018082,2]
[323432762,1713984676207,-785.8,0.00018082,2]
[323432763,1713984676216,-500.0,0.00018082,2]
[323432764,1713984676226,-695.13,0.00018082,2]
[323432765,1713984676235,-999.88,0.00018082,2]
[323432766,1713984676245,-500.0,0.00018082,2]
[323432767,1713984676254,-500.0,0.00018082,2]
[323432768,1713984676263,-1909.77,0.00018082,2]
[323432769,1713984676272,-500.0,0.00018082,2]
[323432770,1713984676284,-634.31,0.00018082,2]
[323432771,1713984676294,-500.0,0.00018082,2]
[323432772,1713984676303,-500.0,0.00018082,2]
[323432773,1713984676316,-500.0,0.00018082,2]
[323432774,1713984676326,-1645.24,0.00018082,2]
[323432775,1713984676335,-254.3650644,0.00018082,2]
[323432776,1713984676345,-500.0,0.00018082,2]
[323432777,1713984676354,-2192.71,0.00018082,2]
[323432778,1713984676364,-736.48,0.00018082,2]
[323432779,1713984676374,-500.0,0.00018082,2]
[323432780,1713984676384,-500.0,0.00018082,2]
[323432781,1713984676397,-691.26,0.00018082,2]
[323432782,1713984676407,-500.0,0.00018082,2]
[323432783,1713984676416,-500.0,0.00018082,2]
[323432784,1713984676426,-500.0,0.00018082,2]
[323432785,1713984676439,-500.0,0.00018082,2]
[323432786,1713984676449,-500.0,0.00018082,2]
[323432787,1713984676459,-650.3,0.00018082,2]
[323432788,1713984676470,-1002.4,0.00018082,2]
[323432789,1713984676480,-1100.44,0.00018082,2]
[323432790,1713984676490,-693.43,0.00018082,2]
[323432791,1713984676501,-534.56,0.00018082,2]
[323432792,1713984676512,-500.0,0.00018082,2]
[323432793,1713984676521,-500.0,0.00018082,2]
[323432794,1713984676531,-500.0,0.00018082,2]
[323432795,1713984676541,-500.0,0.00018082,2]
[323432796,1713984676550,-1280.96,0.00018082,2]
[323432797,1713984676560,-515.07,0.00018082,2]
[323432798,1713984676569,-1572.17,0.00018082,2]
[323432799,1713984676579,-2597.28,0.00018082,2]
[323432800,1713984676589,-539.11,0.00018082,2]
[323432801,1713984676599,-1730.28,0.00018082,2]
[323432802,1713984676609,-500.0,0.00018082,2]
[323432803,1713984676618,-500.0,0.00018082,2]
[323432804,1713984676729,-500.0,0.00018082,2]
[323432805,1713984676739,-553.14,0.00018082,2]
[323432806,1713984676748,-622.48336572,0.00018082,2]
[323432807,1713984676758,-1050.14,0.00018082,2]
[323432808,1713984676768,-500.0,0.00018082,2]
[323432809,1713984676778,-2490.79,0.00018082,2]
[323432810,1713984676787,-939.73,0.00018082,2]
[323432811,1713984676798,-500.0,0.00018082,2]
[323432812,1713984676808,-500.0,0.00018082,2]
[323432813,1713984676817,-1217.82,0.00018082,2]
[323432814,1713984676826,-1977.88,0.00018082,2]
[323432815,1713984676836,-979.24,0.00018082,2]
[323432816,1713984676846,-500.0,0.00018082,2]
[323432817,1713984676860,-527.21734633,0.00018082,2]
[323432818,1713984676869,-571.61,0.00018082,2]
[323432819,1713984676879,-1094.17,0.00018082,2]
[323432820,1713984676888,-500.0,0.00018082,2]
[323432821,1713984676899,-500.0,0.00018082,2]
[323432822,1713984676908,-1357.41,0.00018082,2]
[323432823,1713984676917,-1382.9,0.00018082,2]
[323432824,1713984676927,-500.0,0.00018082,2]
[323432825,1713984676937,-1158.93,0.00018082,2]
[323432826,1713984676946,-500.0,0.00018082,2]
[323432827,1713984676955,-1002.6,0.00018082,2]
[323432828,1713984676964,-20762.57,0.00018082,2]
[323432829,1713984676974,-1565.04,0.00018082,2]
[323432830,1713984676983,-500.0,0.00018082,2]
[323432831,1713984676993,-1005.95,0.00018082,2]
[323432832,1713984677003,-500.0,0.00018082,2]
[323432833,1713984677013,-500.0,0.00018082,2]
[323432834,1713984677022,-500.0,0.00018082,2]
[323432835,1713984677032,-908.92,0.00018082,2]
[323432836,1713984677042,-19373.57,0.00018082,2]
[323432837,1713984677051,-1126.69,0.00018082,2]
[323432838,1713984677061,-1323.24,0.00018082,2]
[323432839,1713984677070,-2676.08,0.00018082,2]
[323432840,1713984677079,-500.0,0.00018082,2]
[323432841,1713984677089,-500.0,0.00018082,2]
[323432842,1713984677098,-541.01,0.00018082,2]
[323432843,1713984677108,-4954.95,0.00018082,2]
[323432844,1713984677118,-637.03,0.00018082,2]
[323432845,1713984677127,-806.42,0.00018082,2]
[323432846,1713984677137,-500.0,0.00018082,2]
[323432847,1713984677148,-500.0,0.00018082,2]
[323432848,1713984677158,-12995.55,0.00018082,2]
[323432849,1713984677167,-2682.8,0.00018082,2]
[323432850,1713984677176,-500.0,0.00018082,2]
[323432851,1713984677186,-500.0,0.00018082,2]
[323432852,1713984677195,-7231.97,0.00018082,2]
[323432853,1713984677204,-1763.41,0.00018082,2]
[323432854,1713984677214,-500.0,0.00018082,2]
[323432855,1713984677224,-500.0,0.00018082,2]
[323432856,1713984677233,-224.36484176,0.00018082,2]
[323432857,1713984677243,-500.0,0.00018082,2]
[323432858,1713984677253,-1109.8,0.00018082,2]
[323432859,1713984677262,-703.53,0.00018082,2]
[323432860,1713984677272,-1396.91,0.00018082,2]
[323432861,1713984677283,-500.0,0.00018082,2]
[323432862,1713984677293,-1419.45,0.00018082,2]
[323432863,1713984677302,-7041.65,0.00018082,2]
[323432864,1713984677314,-500.0,0.00018082,2]
[323432865,1713984677323,-8055.98,0.00018082,2]
[323432866,1713984677333,-10090.6,0.00018082,2]
[323432867,1713984677342,-522.15,0.00018082,2]
[323432868,1713984677352,-500.0,0.00018082,2]
[323432869,1713984677362,-310.64301672,0.00018082,2]
[323432870,1713984677372,-500.0,0.00018082,2]
[323432871,1713984677381,-500.0,0.00018082,2]
[323432872,1713984677394,-707.89,0.00018082,2]
[323432873,1713984677404,-500.0,0.00018082,2]
[323432874,1713984677414,-500.0,0.00018082,2]
[323432875,1713984677423,-2261.27,0.00018082,2]
[323432876,1713984677432,-500.0,0.00018082,2]
[323432877,1713984677442,-6891.8,0.00018082,2]
[323432878,1713984677451,-3678.5,0.00018082,2]
[323432879,1713984677461,-1234.39,0.00018082,2]
[323432880,1713984677471,-1371.63,0.00018082,2]
[323432881,1713984677480,-395.34378577,0.00018082,2]
[323432882,1713984677489,-500.0,0.00018082,2]
[323432883,1713984677498,-704.21,0.00018082,2]
[323432884,1713984677508,-500.0,0.00018082,2]
[323432885,1713984677517,-925.33,0.00018082,2]
[323432886,1713984677527,-911.08,0.00018082,2]
[323432887,1713984677536,-500.0,0.00018082,2]
[323432888,1713984677546,-741.31,0.00018082,2]
[323432889,1713984677555,-500.0,0.00018082,2]
[323432890,1713984677564,-3135.11,0.00018082,2]
[323432891,1713984677574,-2399.0,0.00018082,2]
[323432892,1713984677583,-500.0,0.00018082,2]
[323432893,1713984677593,-872.83,0.00018082,2]
[323432894,1713984677602,-500.0,0.00018082,2]
[323432895,1713984677612,-500.0,0.00018082,2]
[323432896,1713984677622,-3286.45,0.00018082,2]
[323432897,1713984677632,-612.33,0.00018082,2]
[323432898,1713984677642,-8567.18,0.00018082,2]
[323432899,1713984677651,-500.0,0.00018082,2]
[323432900,1713984677661,-1176.79,0.00018082,2]
[323432901,1713984677670,-984.91,0.00018082,2]
[323432902,1713984677679,-500.0,0.00018082,2]
[323432903,1713984677688,-500.0,0.00018082,2]
[323432904,1713984677697,-1391.58,0.00018082,2]
[323432905,1713984677707,-500.0,0.00018082,2]
[323432906,1713984677717,-500.0,0.00018082,2]
[323432907,1713984677727,-1326.81,0.00018082,2]
[323432908,1713984677736,-500.0,0.00018082,2]
[323432909,1713984677745,-604.22,0.00018082,2]
[323432910,1713984677755,-613.12,0.00018082,2]
[323432911,1713984677764,-2262.73,0.00018082,2]
[323432912,1713984677774,-500.0,0.00018082,2]
[323432913,1713984677783,-692.01,0.00018082,2]
[323432914,1713984677792,-1674.86,0.00018082,2]
[323432915,1713984677802,-207.94363039,0.00018082,2]
[323432916,1713984677811,-500.0,0.00018082,2]
[323432917,1713984677821,-500.0,0.00018082,2]
[323432918,1713984677831,-623.72,0.00018082,2]
[323432919,1713984677841,-500.0,0.00018082,2]
[323432920,1713984677850,-623.43,0.00018082,2]
[323432921,1713984677860,-500.0,0.00018082,2]
[323432922,1713984677870,-150.0,0.000181,2]
[323432923,1713984677879,-620.00014609,0.00018342,2]
[323432924,1713984677889,-427.52982301,0.00018356,2]
[323432925,1713984677900,-500.0,0.00018356,2]
[323432926,1713984677910,-170.55654774,0.00018356,2]
[323432927,1713984677919,-500.0,0.00018356,2]
[323432928,1713984677929,-625.0,0.00018356,2]
[323432929,1713984677938,-674.8,0.00018356,2]
[323432930,1713984677948,-320.52449047,0.00018356,2]
[323432931,1713984677957,-500.0,0.00018356,2]
[323432932,1713984677967,-500.0,0.00018356,2]
[323432933,1713984677976,-500.0,0.00018356,2]
[323432934,1713984677985,-334.67040565,0.00018356,2]
[323432935,1713984677994,-585.29,0.00018356,2]
[323432936,1713984678004,-716.83,0.00018356,2]
[323432937,1713984678013,-500.0,0.00018356,2]
[323432938,1713984678023,-500.0,0.00018356,2]
[323432939,1713984678033,-500.0,0.00018356,2]
[323432940,1713984678042,-500.0,0.00018356,2]
[323432941,1713984678051,-500.0,0.00018356,2]
[323432942,1713984678060,-500.0,0.00018356,2]
[323432943,1713984678070,-500.0,0.00018356,2]
[323432944,1713984678079,-500.0,0.00018356,2]
[323432945,1713984678089,-560.98,0.00018356,2]
[323432946,1713984678099,-500.0,0.00018356,2]
[323432947,1713984678108,-500.0,0.00018356,2]
[323432948,1713984678118,-722.43,0.00018356,2]
[323432949,1713984678127,-839.18,0.00018356,2]
[323432950,1713984678137,-500.0,0.00018356,2]
[323432951,1713984678150,-500.0,0.00018356,2]
[323432952,1713984678159,-500.0,0.00018356,2]
[323432953,1713984678168,-500.0,0.00018356,2]
[323432954,1713984678178,-500.0,0.00018356,2]
[323432955,1713984678187,-500.0,0.00018356,2]
[323432956,1713984678197,-1155.53,0.00018356,2]
[323432957,1713984678207,-2033.21,0.00018356,2]
[323432958,1713984678216,-1717.84,0.00018356,2]
[323432959,1713984678225,-500.0,0.00018356,2]
[323432960,1713984678235,-420.85507138,0.00018356,2]
[323432961,1713984678244,-1292.95,0.00018356,2]
[323432962,1713984678254,-500.0,0.00018356,2]
[323432963,1713984678263,-500.0,0.00018356,2]
[323432964,1713984678273,-500.0,0.00018356,2]
[323432965,1713984678287,-1786.12,0.00018356,2]
[323432966,1713984678296,-1139.75,0.00018356,2]
[323432967,1713984678404,-603.4,0.00018356,2]
[323432968,1713984678414,-978.62,0.00018356,2]
[323432969,1713984678424,-500.0,0.00018356,2]
[323432970,1713984678433,-902.13,0.00018356,2]
[323432971,1713984678442,-999.37,0.00018356,2]
[323432972,1713984678451,-789.38,0.00018356,2]
[323432973,1713984678460,-864.27,0.00018356,2]
[323432974,1713984678470,-500.0,0.00018356,2]
[323432975,1713984678479,-500.0,0.00018356,2]
[323432976,1713984678489,-500.0,0.00018356,2]
[323432977,1713984678498,-500.0,0.00018356,2]
[323432978,1713984678507,-500.0,0.00018356,2]
[323432979,1713984678516,-1005.48,0.00018356,2]
[323432980,1713984678527,-2278.55,0.00018356,2]
[323432981,1713984678536,-500.0,0.00018356,2]
[323432982,1713984678546,-708.42,0.00018356,2]
[323432983,1713984678555,-500.0,0.00018356,2]
[323432984,1713984678564,-500.0,0.00018356,2]
[323432985,1713984678574,-500.0,0.00018356,2]
[323432986,1713984678583,-500.0,0.00018356,2]
[323432987,1713984678593,-785.8,0.00018356,2]
[323432988,1713984678602,-575.37211627,0.00018356,2]
[323432989,1713984678611,-695.13,0.00018356,2]
[323432990,1713984678621,-999.88,0.00018356,2]
[323432991,1713984678631,-500.0,0.00018356,2]
[323432992,1713984678640,-500.0,0.00018356,2]
[323432993,1713984678649,-1909.77,0.00018356,2]
[323432994,1713984678658,-500.0,0.00018356,2]